Workbook

Sheet Database
A1: Note : To use this sheet you need to enable the macros
A3: 1 | B3: =A3+1 -> 2 | C3: =B3+1 -> 3 | D3: 4 | E3: 5 | F3: 6 | G3: 7 | H3: 8 | I3: 9 | J3: 10 | K3: 11 | L3: 12 | M3: 13 | N3: 14 | O3: 15 | P3: 16 | Q3: 17 | R3: 18 | S3: 19 | T3: 20 | U3: 21 | V3: 22 | W3: 23 | X3: 24 | Y3: 25 | Z3: 26 | AA3: 27 | AB3: 28 | AC3: 29 | AD3: 30 | AE3: 31 | AF3: 32 | AG3: 33 | AH3: 34 | AI3: 35 | AJ3: 36
K4: TOTAL GROSS SALARY | X4: TOTAL DEDUCTIONS
A5: Name | B5: Designation | C5: Month | D5: Year | E5: Total Days of Month | F5: Allowed Leave | G5: Leave taken | H5: Worked Days | I5: CTC | J5: =CONCATENATE("CTC for "&C6&" ",D6) -> CTC for December 2016 | K5: Basic Salary | L5: DA | M5: HRA | N5: Conveyance | O5: Conv Working | P5: Medical Expenses | Q5: Medi Working | R5: Spec working | S5: Special | T5: Total working | U5: Bonus | V5: TA | W5: TOTAL | X5: Contribution to PF | Y5: Profession Tax | Z5: TDS | AA5: Salary Advance | AB5: TOTAL | AC5: NET PAYABLE | AD5: Gender | AE5: Prefix | AF5: Name of Authorised Signatory | AG5: PF Applicable | AH5: Medical Bill Submitted | AI5: Medical Bill Amount | AJ5: Your Company Name
A6: Raj Sharma | B6: Chief Technical Officer | C6: December | D6: 2016 | E6: 30 | F6: 2 | G6: 0 | H6: =IF(G6>=F6,E6-G6+F6,E6) -> 30 | I6: 60000 | J6: =IF(H6=0,"",ROUND(I6/E6*H6,-1)) -> 60000 | K6: =IF(H6=0,"",ROUND($J6/E6*H6*50%,-1)) -> 30000 | L6: =IF(H6=0,"",ROUND(J6/E6*H6*10%,-1)) -> 6000 | M6: =IF(H6=0,"",ROUND(J6/E6*H6*25%,-1)) -> 15000 | N6: =IF(H6=0,"",1600) -> 1600 | O6: =IF(H6=0,"",ROUND(N6/E6*H6,-1)) -> 1600 | P6: =MIN(1250,IF(AH6="Yes",IF(H6=0,"",AI6),0)) -> 1250 | R6: =IF(H6=0,"",ROUND(J6-T6,-1)) -> 6150 | S6: =IF(R6<=0,0,R6) -> 6150 | T6: =IF(H6=0,"",SUM(K6:M6)+O6+P6) -> 53850 | U6: 13100 | V6: 0 | W6: =IF(H6=0,"",SUM(K6:M6)+O6+Q6+S6+U6+V6) -> 71850 | X6: =ROUND(MIN(1800,IF(AG6="Yes",SUM(K6:L6)*12%,0)),-1) -> 1800 | Z6: 7000 | AB6: =SUM(X6:AA6) -> 8800 | AC6: =IFERROR(W6-AB6,"") -> 63050 | AD6: Male | AE6: =IF(AD6=0,"",IF(AD6="Male","Mr",IF(AD6="Female","Mrs"))) -> Mr | AF6: Managing Director | AG6: Yes | AH6: Yes | AI6: 1250 | AJ6: Company Name
A7: Sharad Gandhi | B7: Accountant | C7: =IF(A7=0,"",C$6) -> December | D7: =IF(A7=0,"",D$6) -> 2016 | E7: 30 | F7: 0 | G7: 0 | H7: =IF(G7>=F7,E7-G7+F7,E7) -> 30 | I7: 30000 | J7: =IF(H7=0,"",ROUND(I7/E7*H7,-1)) -> 30000 | K7: =IF(H7=0,"",ROUND($J7/E7*H7*50%,-1)) -> 15000 | L7: =IF(H7=0,"",ROUND(J7/E7*H7*10%,-1)) -> 3000 | M7: =IF(H7=0,"",ROUND(J7/E7*H7*25%,-1)) -> 7500 | N7: =IF(H7=0,"",1600) -> 1600 | O7: =IF(H7=0,"",ROUND(N7/E7*H7,-1)) -> 1600 | P7: =MIN(1250,IF(AH7="Yes",IF(H7=0,"",AI7),0)) -> 1250 | R7: =IF(H7=0,"",ROUND(J7-T7,-1)) -> 1650 | S7: 1650 | T7: =IF(H7=0,"",SUM(K7:M7)+O7+P7) -> 28350 | U7: 2300 | V7: 0 | W7: 31050 | X7: =ROUND(MIN(1800,IF(AG7="Yes",SUM(K7:L7)*12%,0)),-1) -> 1800 | Z7: 500 | AB7: 2300 | AC7: 28750 | AD7: Male | AE7: Mr | AF7: =IF(A7=0,"",AF$6) -> Managing Director | AG7: Yes | AH7: Yes | AI7: 1250 | AJ7: ABC & Company Ltd
A8: Danish D'Souza | B8: Senior Web Developer | C8: December | D8: 2016 | E8: 30 | F8: 0 | G8: 0 | H8: 30 | I8: 20000 | J8: 20000 | K8: 10000 | L8: 2000 | M8: 5000 | N8: 1000 | O8: 1000 | P8: 1250 | R8: 750 | S8: 750 | T8: 19250 | U8: 0 | V8: 0 | W8: 18750 | X8: 1440 | AB8: 1440 | AC8: 17310 | AD8: Male | AE8: Mr | AF8: =IF(A8=0,"",AF$6) -> Managing Director | AG8: Yes | AH8: Yes | AI8: 2000 | AJ8: Sabu & Company Ltd
A9: Pawan Patil | B9: Senior Ux/Ui Developer | C9: December | D9: 2016 | E9: 30 | F9: 2 | G9: 2 | H9: 30 | I9: 25000 | J9: 25000 | K9: 12500 | L9: 2500 | M9: 6250 | N9: =IF(H9=0,"",1600) -> 1600 | O9: 1600 | P9: 1250 | R9: 900 | S9: 900 | T9: 24100 | U9: 0 | V9: 0 | W9: 23750 | X9: 1800 | AB9: 1800 | AC9: 21950 | AD9: Male | AE9: Mr | AF9: =IF(A9=0,"",AF$6) -> Managing Director | AG9: Yes | AH9: Yes | AI9: 1250 | AJ9: ABC & Company Ltd
A10: Rijo Paul | B10: Senior Web Developer | C10: December | D10: 2016 | E10: 30 | F10: 2 | G10: 2 | H10: 30 | I10: 22000 | J10: 22000 | K10: 11000 | L10: 2200 | M10: 5500 | N10: 1100 | O10: 1100 | P10: 1250 | R10: 950 | S10: 950 | T10: 21050 | U10: 2300 | V10: 0 | W10: 23050 | X10: 1580 | AB10: 1580 | AC10: 21470 | AD10: Male | AE10: Mr | AF10: =IF(A10=0,"",AF$6) -> Managing Director | AG10: Yes | AH10: Yes | AI10: 2200 | AJ10: ABC & Company Ltd
A11: Joseph P | B11: Senior Web Developer | C11: December | D11: 2016 | E11: 30 | F11: 2 | G11: 1 | H11: 30 | I11: 14000 | J11: 14000 | K11: 7000 | L11: 1400 | M11: 3500 | N11: 700 | O11: 700 | P11: 1250 | R11: 150 | S11: 150 | T11: 13850 | U11: 2300 | V11: 0 | W11: 15050 | X11: 1010 | AB11: 1010 | AC11: 14040 | AD11: Male | AE11: Mr | AF11: Managing Director | AG11: Yes | AH11: Yes | AI11: 1400 | AJ11: ABC & Company Ltd
A12: Aakash Patel | B12: Web Developer | C12: December | D12: 2016 | E12: 30 | F12: 2 | G12: 2 | H12: 30 | I12: 15000 | J12: 15000 | K12: 7500 | L12: 1500 | M12: 3750 | N12: 600 | O12: 600 | P12: 1200 | R12: 450 | S12: 450 | T12: 14550 | U12: 0 | V12: 0 | W12: 13800 | X12: 1080 | AB12: 1080 | AC12: 12720 | AD12: Male | AE12: Mr | AF12: Managing Director | AG12: Yes | AH12: Yes | AI12: 1200 | AJ12: ABC & Company Ltd
A13: Ganesh Rahu | B13: Ux/Ui Designer | C13: December | D13: 2016 | E13: 30 | F13: 2 | G13: 1 | H13: 30 | I13: 14000 | J13: 14000 | K13: 7000 | L13: 1400 | M13: 3500 | N13: 600 | O13: 600 | P13: 1200 | R13: 300 | S13: =IF(R13<=0,0,R13) -> 300 | T13: 13700 | U13: 0 | V13: 0 | W13: 12800 | X13: 1010 | AB13: 1010 | AC13: 11790 | AD13: Male | AE13: Mr | AF13: Managing Director | AG13: Yes | AH13: Yes | AI13: 1200 | AJ13: ABC & Company Ltd
A14: Vinudas K.S | B14: Web Developer | C14: December | D14: 2016 | E14: 30 | F14: 2 | G14: 2 | H14: 30 | I14: 14000 | J14: 14000 | K14: 7000 | L14: 1400 | M14: 3500 | N14: 700 | O14: 700 | P14: 1250 | R14: 150 | S14: 150 | T14: 13850 | U14: 1500 | V14: 0 | W14: 14250 | X14: 1010 | AB14: 1010 | AC14: 13240 | AD14: Male | AE14: Mr | AF14: Managing Director | AG14: Yes | AH14: Yes | AI14: 1400 | AJ14: ABC & Company Ltd
A15: Divya Kumar | B15: Web Developer | C15: December | D15: 2016 | E15: 30 | F15: 2 | G15: 2 | H15: 30 | I15: 8000 | J15: 8000 | K15: 4000 | L15: 800 | M15: 2000 | N15: 400 | O15: 400 | P15: 800 | R15: 0 | S15: 0 | T15: 8000 | U15: 0 | V15: 0 | W15: 7200 | X15: 580 | AB15: 580 | AC15: 6620 | AD15: Female | AE15: Mrs | AF15: Managing Director | AG15: Yes | AH15: Yes | AI15: 800 | AJ15: ABC & Company Ltd
A16: Shilpa R | B16: QAA | C16: December | D16: 2016 | E16: 30 | F16: 2 | G16: 3 | H16: 29 | I16: 8000 | J16: 7730 | K16: 3740 | L16: 750 | M16: 1870 | N16: 387 | O16: 370 | P16: 774 | R16: 230 | S16: 230 | T16: 7504 | U16: 0 | V16: 0 | W16: 6960 | X16: 540 | AB16: 540 | AC16: 6420 | AD16: Female | AE16: Mrs | AF16: Managing Director | AG16: Yes | AH16: Yes | AI16: 774 | AJ16: ABC & Company Ltd
A17: Sindhu J.P | B17: Web Developer | C17: December | D17: 2016 | E17: 30 | F17: 2 | G17: 1 | H17: 30 | I17: 8000 | J17: 8000 | K17: 4000 | L17: 800 | M17: 2000 | N17: 400 | O17: 400 | P17: 800 | R17: 0 | S17: 0 | T17: 8000 | U17: 0 | V17: 0 | W17: 7200 | X17: 580 | AB17: 580 | AC17: 6620 | AD17: Female | AE17: Mrs | AF17: Managing Director | AG17: Yes | AH17: Yes | AI17: 800 | AJ17: ABC & Company Ltd
A18: Deepthi P.S | B18: QAA | C18: December | D18: 2016 | E18: 30 | F18: 2 | G18: 2 | H18: 30 | I18: 8000 | J18: 8000 | K18: 4000 | L18: 800 | M18: 2000 | N18: 181 | O18: 180 | P18: 749 | R18: 270 | S18: 270 | T18: 7729 | U18: 0 | V18: 0 | W18: 7250 | X18: 580 | AB18: 580 | AC18: 6670 | AD18: Female | AE18: Mrs | AF18: Managing Director | AG18: Yes | AH18: Yes | AI18: 749 | AJ18: ABC & Company Ltd
A19: Lijin k c | B19: Accountant | C19: December | D19: 2016 | E19: 30 | F19: 2 | G19: 2 | H19: 30 | I19: 13000 | J19: 13000 | K19: 6500 | L19: 1300 | M19: 3250 | N19: 500 | O19: 500 | P19: 1000 | R19: 450 | S19: 450 | T19: 12550 | U19: 2000 | V19: 0 | W19: 14000 | X19: 940 | AB19: 940 | AC19: 13060 | AD19: Male | AE19: =IF(AD19=0,"",IF(AD19="Male","Mr",IF(AD19="Female","Mrs"))) -> Mr | AF19: Managing Director | AG19: Yes | AH19: Yes | AI19: 1000 | AJ19: ABC & Company Ltd
A20: Sayad K M | B20: Project Manager | C20: December | D20: 2016 | E20: 30 | F20: 2 | G20: 1 | H20: 30 | I20: 35000 | J20: 35000 | K20: 17500 | L20: 3500 | M20: 8750 | N20: =IF(H20=0,"",1600) -> 1600 | O20: 1600 | P20: 1250 | R20: 2400 | S20: =IF(R20<=0,0,R20) -> 2400 | T20: 32600 | U20: 2000 | V20: 0 | W20: 35750 | X20: 1800 | Z20: 2000 | AB20: 3800 | AC20: 31950 | AD20: Male | AE20: =IF(AD20=0,"",IF(AD20="Male","Mr",IF(AD20="Female","Mrs"))) -> Mr | AF20: Managing Director | AG20: Yes | AH20: Yes | AI20: 1250 | AJ20: ABC & Company Ltd
A21: Ajil k Mohanan | B21: Web Developer | C21: December | D21: 2016 | E21: 30 | F21: 2 | G21: 2 | H21: 30 | I21: 22000 | J21: 22000 | K21: 11000 | L21: 2200 | M21: 5500 | N21: 500 | O21: 500 | P21: 1250 | R21: 1550 | S21: 1550 | T21: 20450 | U21: 0 | V21: 0 | W21: 20750 | X21: 1580 | AB21: 1580 | AC21: =IFERROR(W21-AB21,"") -> 19170 | AD21: Male | AE21: Mr | AF21: Managing Director | AG21: Yes | AH21: Yes | AI21: 2000 | AJ21: ABC & Company Ltd
A22: Edison ML | B22: Web Developer | C22: December | D22: 2016 | E22: 30 | F22: 2 | G22: 0 | H22: 30 | I22: 12000 | J22: 12000 | K22: 6000 | L22: 1200 | M22: 3000 | N22: 600 | O22: 600 | P22: 1200 | R22: 0 | S22: 0 | T22: 12000 | U22: 1000 | V22: 0 | W22: 11800 | X22: 860 | AB22: 860 | AC22: 10940 | AD22: Male | AE22: Mr | AF22: Managing Director | AG22: Yes | AH22: Yes | AI22: 1200 | AJ22: ABC & Company Ltd
A23: Basil P E | B23: Web Developer | C23: December | D23: 2016 | E23: 30 | F23: 2 | G23: 1 | H23: 30 | I23: 22000 | J23: 22000 | K23: 11000 | L23: 2200 | M23: 5500 | N23: 267 | O23: 270 | P23: 1067 | R23: 1960 | S23: 1960 | T23: 20037 | U23: 5000 | V23: 0 | W23: 25930 | X23: 1580 | AB23: 1580 | AC23: 24350 | AD23: Male | AE23: Mr | AF23: Managing Director | AG23: Yes | AH23: Yes | AI23: 1067 | AJ23: ABC & Company Ltd
A24: Jobin George | B24: Web Developer | C24: December | D24: 2016 | E24: 30 | F24: 2 | G24: 0 | H24: 30 | I24: 16000 | J24: 16000 | K24: 8000 | L24: 1600 | M24: 4000 | N24: 800 | O24: 800 | P24: 1250 | R24: 350 | S24: 350 | T24: 15650 | U24: 1500 | V24: 0 | W24: 16250 | X24: 1150 | AB24: 1150 | AC24: 15100 | AD24: Male | AE24: Mr | AF24: Managing Director | AG24: Yes | AH24: Yes | AI24: 1600 | AJ24: ABC & Company Ltd
A25: Jismon Tomy | B25: Web Developer | C25: December | D25: 2016 | E25: 30 | F25: 2 | G25: 1 | H25: 30 | I25: 10000 | J25: 10000 | K25: 5000 | L25: 1000 | M25: 2500 | N25: 500 | O25: 500 | P25: 1000 | R25: 0 | S25: 0 | T25: 10000 | U25: 2000 | V25: 0 | W25: 11000 | X25: 720 | AB25: 720 | AC25: 10280 | AD25: Male | AE25: Mr | AF25: Managing Director | AG25: Yes | AH25: Yes | AI25: 1000 | AJ25: ABC & Company Ltd
A26: Sharafali P | B26: Ux/Ui Designer | C26: December | D26: 2016 | E26: 30 | F26: 2 | G26: 0 | H26: 30 | I26: 14000 | J26: 14000 | K26: 7000 | L26: 1400 | M26: 3500 | N26: 700 | O26: 700 | P26: 1250 | R26: 150 | S26: 150 | T26: 13850 | U26: 0 | V26: 0 | W26: 12750 | X26: 1010 | AB26: 1010 | AC26: 11740 | AD26: Male | AE26: Mr | AF26: Managing Director | AG26: Yes | AH26: Yes | AI26: 1400 | AJ26: ABC & Company Ltd
H27: 0 | N27: =IF(H27=0,"",1600) ->  | P27: 0 | X27: 0 | AB27: 0 | AJ27: ABC & Company Ltd
H28: 0 | P28: 0 | X28: 0 | AB28: 0 | AJ28: ABC & Company Ltd
H29: =IF(G29>=F29,E29-G29+F29,E29) -> 0 | P29: 0 | S29: =IF(R29<=0,0,R29) ->  | X29: 0 | AB29: 0 | AJ29: ABC & Company Ltd
D30: =IF(A30=0,"",D$6) ->  | H30: 0 | P30: 0 | X30: 0 | AB30: 0 | AJ30: ABC & Company Ltd
C31: =IF(A31=0,"",C$6) ->  | D31: =IF(A31=0,"",D$6) ->  | H31: 0 | P31: 0 | X31: 0 | AB31: 0 | AJ31: ABC & Company Ltd
C32: =IF(A32=0,"",C$6) ->  | D32: =IF(A32=0,"",D$6) ->  | H32: 0 | P32: 0 | X32: 0 | AB32: 0 | AJ32: ABC & Company Ltd
D33: =IF(A33=0,"",D$6) ->  | H33: 0 | P33: 0 | X33: 0 | AB33: 0 | AJ33: ABC & Company Ltd
H34: 0 | P34: 0 | X34: 0 | AB34: 0 | AJ34: ABC & Company Ltd
H35: 0 | P35: 0 | X35: 0 | AB35: 0 | AJ35: ABC & Company Ltd
H36: 0 | P36: 0 | X36: 0 | AB36: 0 | AJ36: ABC & Company Ltd
H37: 0 | P37: 0 | X37: 0 | AB37: 0 | AJ37: ABC & Company Ltd
H38: 0 | P38: 0 | X38: 0 | AB38: 0 | AJ38: ABC & Company Ltd
H39: 0 | P39: 0 | X39: 0 | AB39: 0 | AJ39: ABC & Company Ltd
H40: 0 | P40: 0 | X40: 0 | AB40: 0 | AJ40: ABC & Company Ltd
H41: 0 | P41: 0 | X41: 0 | AB41: 0 | AJ41: ABC & Company Ltd
H42: 0 | P42: 0 | X42: 0 | AB42: 0 | AJ42: ABC & Company Ltd
H43: 0 | P43: 0 | X43: 0 | AB43: 0 | AJ43: ABC & Company Ltd
H44: 0 | P44: 0 | X44: 0 | AB44: 0 | AJ44: ABC & Company Ltd
H45: 0 | P45: 0 | X45: 0 | AB45: 0 | AJ45: ABC & Company Ltd
H46: 0 | P46: 0 | X46: 0 | AB46: 0 | AJ46: ABC & Company Ltd
H47: 0 | P47: 0 | X47: 0 | AB47: 0 | AJ47: ABC & Company Ltd
H48: 0 | P48: 0 | X48: 0 | AB48: 0 | AJ48: ABC & Company Ltd
H49: 0 | P49: 0 | X49: 0 | AB49: 0 | AJ49: ABC & Company Ltd
H50: 0 | P50: 0 | X50: 0 | AB50: 0 | AJ50: ABC & Company Ltd
H51: 0 | P51: 0 | X51: 0 | AB51: 0 | AJ51: ABC & Company Ltd

Sheet Consolidation
A1: ='Salary Slip'!B1 -> Company Name
A2: =CONCATENATE("Consolidated Salary Sheet for the month of "&" "&Database!C6&" ", Database!D6) -> Consolidated Salary Sheet for the month of December 2016
A3: Sl No | B3: Name of Employee | C3: CTC | D3: =Database!K4 -> TOTAL GROSS SALARY | L3: =Database!W5 -> TOTAL | M3: =Database!X4 -> TOTAL DEDUCTIONS | R3: =Database!AC5 -> NET PAYABLE
D4: =Database!K5 -> Basic Salary | E4: =Database!L5 -> DA | F4: =Database!M5 -> HRA | G4: =Database!N5 -> Conveyance | H4: =Database!P5 -> Medical Expenses | I4: =Database!S5 -> Special | J4: =Database!U5 -> Bonus | K4: =Database!V5 -> TA | M4: =Database!X5 -> Contribution to PF | N4: =Database!Y5 -> Profession Tax | O4: =Database!Z5 -> TDS | P4: =Database!AA5 -> Salary Advance | Q4: =Database!AB5 -> TOTAL
A5: 1 | B5: =Database!A6 -> Raj Sharma | C5: =Database!I6 -> 60000 | D5: =Database!K6 -> 30000 | E5: =Database!L6 -> 6000 | F5: =Database!M6 -> 15000 | G5: =Database!O6 -> 1600 | H5: =Database!P6 -> 1250 | I5: =Database!S6 -> 6150 | J5: =Database!U6 -> 13100 | K5: =Database!V6 -> 0 | L5: =SUM(D5:K5) -> 73100 | M5: =Database!X6 -> 1800 | N5: =Database!Y6 -> 0 | O5: =Database!Z6 -> 7000 | P5: =Database!AA6 -> 0 | Q5: =SUM(M5:P5) -> 8800 | R5: =L5-Q5 -> 64300
A6: =IF(C6>0,A5+1,"") -> 2 | B6: =Database!A7 -> Sharad Gandhi | C6: =Database!I7 -> 30000 | D6: =Database!K7 -> 15000 | E6: =Database!L7 -> 3000 | F6: =Database!M7 -> 7500 | G6: =Database!O7 -> 1600 | H6: =Database!P7 -> 1250 | I6: =Database!S7 -> 1650 | J6: =Database!U7 -> 2300 | K6: =Database!V7 -> 0 | L6: 32300 | M6: =Database!X7 -> 1800 | N6: =Database!Y7 -> 0 | O6: =Database!Z7 -> 500 | P6: =Database!AA7 -> 0 | Q6: 2300 | R6: 30000
A7: 3 | B7: =Database!A8 -> Danish D'Souza | C7: =Database!I8 -> 20000 | D7: =Database!K8 -> 10000 | E7: =Database!L8 -> 2000 | F7: =Database!M8 -> 5000 | G7: =Database!O8 -> 1000 | H7: =Database!P8 -> 1250 | I7: =Database!S8 -> 750 | J7: =Database!U8 -> 0 | K7: =Database!V8 -> 0 | L7: 20000 | M7: =Database!X8 -> 1440 | N7: =Database!Y8 -> 0 | O7: =Database!Z8 -> 0 | P7: =Database!AA8 -> 0 | Q7: 1440 | R7: 18560
A8: 4 | B8: =Database!A9 -> Pawan Patil | C8: =Database!I9 -> 25000 | D8: =Database!K9 -> 12500 | E8: =Database!L9 -> 2500 | F8: =Database!M9 -> 6250 | G8: =Database!O9 -> 1600 | H8: =Database!P9 -> 1250 | I8: =Database!S9 -> 900 | J8: =Database!U9 -> 0 | K8: =Database!V9 -> 0 | L8: 25000 | M8: =Database!X9 -> 1800 | N8: =Database!Y9 -> 0 | O8: =Database!Z9 -> 0 | P8: =Database!AA9 -> 0 | Q8: 1800 | R8: 23200
A9: 5 | B9: =Database!A10 -> Rijo Paul | C9: =Database!I10 -> 22000 | D9: =Database!K10 -> 11000 | E9: =Database!L10 -> 2200 | F9: =Database!M10 -> 5500 | G9: =Database!O10 -> 1100 | H9: =Database!P10 -> 1250 | I9: =Database!S10 -> 950 | J9: =Database!U10 -> 2300 | K9: =Database!V10 -> 0 | L9: 24300 | M9: =Database!X10 -> 1580 | N9: =Database!Y10 -> 0 | O9: =Database!Z10 -> 0 | P9: =Database!AA10 -> 0 | Q9: 1580 | R9: 22720
A10: 6 | B10: =Database!A11 -> Joseph P | C10: =Database!I11 -> 14000 | D10: =Database!K11 -> 7000 | E10: =Database!L11 -> 1400 | F10: =Database!M11 -> 3500 | G10: =Database!O11 -> 700 | H10: =Database!P11 -> 1250 | I10: =Database!S11 -> 150 | J10: =Database!U11 -> 2300 | K10: =Database!V11 -> 0 | L10: 16300 | M10: =Database!X11 -> 1010 | N10: =Database!Y11 -> 0 | O10: =Database!Z11 -> 0 | P10: =Database!AA11 -> 0 | Q10: 1010 | R10: 15290
A11: 7 | B11: =Database!A12 -> Aakash Patel | C11: =Database!I12 -> 15000 | D11: =Database!K12 -> 7500 | E11: =Database!L12 -> 1500 | F11: =Database!M12 -> 3750 | G11: =Database!O12 -> 600 | H11: =Database!P12 -> 1200 | I11: =Database!S12 -> 450 | J11: =Database!U12 -> 0 | K11: =Database!V12 -> 0 | L11: 15000 | M11: =Database!X12 -> 1080 | N11: =Database!Y12 -> 0 | O11: =Database!Z12 -> 0 | P11: =Database!AA12 -> 0 | Q11: 1080 | R11: 13920
A12: 8 | B12: =Database!A13 -> Ganesh Rahu | C12: =Database!I13 -> 14000 | D12: =Database!K13 -> 7000 | E12: =Database!L13 -> 1400 | F12: =Database!M13 -> 3500 | G12: =Database!O13 -> 600 | H12: =Database!P13 -> 1200 | I12: =Database!S13 -> 300 | J12: =Database!U13 -> 0 | K12: =Database!V13 -> 0 | L12: 14000 | M12: =Database!X13 -> 1010 | N12: =Database!Y13 -> 0 | O12: =Database!Z13 -> 0 | P12: =Database!AA13 -> 0 | Q12: 1010 | R12: 12990
A13: 9 | B13: =Database!A14 -> Vinudas K.S | C13: =Database!I14 -> 14000 | D13: =Database!K14 -> 7000 | E13: =Database!L14 -> 1400 | F13: =Database!M14 -> 3500 | G13: =Database!O14 -> 700 | H13: =Database!P14 -> 1250 | I13: =Database!S14 -> 150 | J13: =Database!U14 -> 1500 | K13: =Database!V14 -> 0 | L13: 15500 | M13: =Database!X14 -> 1010 | N13: =Database!Y14 -> 0 | O13: =Database!Z14 -> 0 | P13: =Database!AA14 -> 0 | Q13: 1010 | R13: 14490
A14: 10 | B14: =Database!A15 -> Divya Kumar | C14: =Database!I15 -> 8000 | D14: =Database!K15 -> 4000 | E14: =Database!L15 -> 800 | F14: =Database!M15 -> 2000 | G14: =Database!O15 -> 400 | H14: =Database!P15 -> 800 | I14: =Database!S15 -> 0 | J14: =Database!U15 -> 0 | K14: =Database!V15 -> 0 | L14: 8000 | M14: =Database!X15 -> 580 | N14: =Database!Y15 -> 0 | O14: =Database!Z15 -> 0 | P14: =Database!AA15 -> 0 | Q14: 580 | R14: 7420
A15: 11 | B15: =Database!A16 -> Shilpa R | C15: =Database!I16 -> 8000 | D15: =Database!K16 -> 3740 | E15: =Database!L16 -> 750 | F15: =Database!M16 -> 1870 | G15: =Database!O16 -> 370 | H15: =Database!P16 -> 774 | I15: =Database!S16 -> 230 | J15: =Database!U16 -> 0 | K15: =Database!V16 -> 0 | L15: 7734 | M15: =Database!X16 -> 540 | N15: =Database!Y16 -> 0 | O15: =Database!Z16 -> 0 | P15: =Database!AA16 -> 0 | Q15: 540 | R15: 7194
A16: 12 | B16: =Database!A17 -> Sindhu J.P | C16: =Database!I17 -> 8000 | D16: =Database!K17 -> 4000 | E16: =Database!L17 -> 800 | F16: =Database!M17 -> 2000 | G16: =Database!O17 -> 400 | H16: =Database!P17 -> 800 | I16: =Database!S17 -> 0 | J16: =Database!U17 -> 0 | K16: =Database!V17 -> 0 | L16: 8000 | M16: =Database!X17 -> 580 | N16: =Database!Y17 -> 0 | O16: =Database!Z17 -> 0 | P16: =Database!AA17 -> 0 | Q16: 580 | R16: 7420
A17: 13 | B17: =Database!A18 -> Deepthi P.S | C17: =Database!I18 -> 8000 | D17: =Database!K18 -> 4000 | E17: =Database!L18 -> 800 | F17: =Database!M18 -> 2000 | G17: =Database!O18 -> 180 | H17: =Database!P18 -> 749 | I17: =Database!S18 -> 270 | J17: =Database!U18 -> 0 | K17: =Database!V18 -> 0 | L17: 7999 | M17: =Database!X18 -> 580 | N17: =Database!Y18 -> 0 | O17: =Database!Z18 -> 0 | P17: =Database!AA18 -> 0 | Q17: 580 | R17: 7419
A18: 14 | B18: =Database!A19 -> Lijin k c | C18: =Database!I19 -> 13000 | D18: =Database!K19 -> 6500 | E18: =Database!L19 -> 1300 | F18: =Database!M19 -> 3250 | G18: =Database!O19 -> 500 | H18: =Database!P19 -> 1000 | I18: =Database!S19 -> 450 | J18: =Database!U19 -> 2000 | K18: =Database!V19 -> 0 | L18: 15000 | M18: =Database!X19 -> 940 | N18: =Database!Y19 -> 0 | O18: =Database!Z19 -> 0 | P18: =Database!AA19 -> 0 | Q18: 940 | R18: 14060
A19: 15 | B19: =Database!A20 -> Sayad K M | C19: =Database!I20 -> 35000 | D19: =Database!K20 -> 17500 | E19: =Database!L20 -> 3500 | F19: =Database!M20 -> 8750 | G19: =Database!O20 -> 1600 | H19: =Database!P20 -> 1250 | I19: =Database!S20 -> 2400 | J19: =Database!U20 -> 2000 | K19: =Database!V20 -> 0 | L19: 37000 | M19: =Database!X20 -> 1800 | N19: =Database!Y20 -> 0 | O19: =Database!Z20 -> 2000 | P19: =Database!AA20 -> 0 | Q19: 3800 | R19: 33200
A20: 16 | B20: =Database!A21 -> Ajil k Mohanan | C20: =Database!I21 -> 22000 | D20: =Database!K21 -> 11000 | E20: =Database!L21 -> 2200 | F20: =Database!M21 -> 5500 | G20: =Database!O21 -> 500 | H20: =Database!P21 -> 1250 | I20: =Database!S21 -> 1550 | J20: =Database!U21 -> 0 | K20: =Database!V21 -> 0 | L20: =SUM(D20:K20) -> 22000 | M20: =Database!X21 -> 1580 | N20: =Database!Y21 -> 0 | O20: =Database!Z21 -> 0 | P20: =Database!AA21 -> 0 | Q20: =SUM(M20:P20) -> 1580 | R20: =L20-Q20 -> 20420
A21: 17 | B21: =Database!A22 -> Edison ML | C21: =Database!I22 -> 12000 | D21: =Database!K22 -> 6000 | E21: =Database!L22 -> 1200 | F21: =Database!M22 -> 3000 | G21: =Database!O22 -> 600 | H21: =Database!P22 -> 1200 | I21: =Database!S22 -> 0 | J21: =Database!U22 -> 1000 | K21: =Database!V22 -> 0 | L21: 13000 | M21: =Database!X22 -> 860 | N21: =Database!Y22 -> 0 | O21: =Database!Z22 -> 0 | P21: =Database!AA22 -> 0 | Q21: 860 | R21: 12140
A22: 18 | B22: =Database!A23 -> Basil P E | C22: =Database!I23 -> 22000 | D22: =Database!K23 -> 11000 | E22: =Database!L23 -> 2200 | F22: =Database!M23 -> 5500 | G22: =Database!O23 -> 270 | H22: =Database!P23 -> 1067 | I22: =Database!S23 -> 1960 | J22: =Database!U23 -> 5000 | K22: =Database!V23 -> 0 | L22: 26997 | M22: =Database!X23 -> 1580 | N22: =Database!Y23 -> 0 | O22: =Database!Z23 -> 0 | P22: =Database!AA23 -> 0 | Q22: 1580 | R22: 25417
A23: 19 | B23: =Database!A24 -> Jobin George | C23: =Database!I24 -> 16000 | D23: =Database!K24 -> 8000 | E23: =Database!L24 -> 1600 | F23: =Database!M24 -> 4000 | G23: =Database!O24 -> 800 | H23: =Database!P24 -> 1250 | I23: =Database!S24 -> 350 | J23: =Database!U24 -> 1500 | K23: =Database!V24 -> 0 | L23: 17500 | M23: =Database!X24 -> 1150 | N23: =Database!Y24 -> 0 | O23: =Database!Z24 -> 0 | P23: =Database!AA24 -> 0 | Q23: 1150 | R23: 16350
A24: 20 | B24: =Database!A25 -> Jismon Tomy | C24: =Database!I25 -> 10000 | D24: =Database!K25 -> 5000 | E24: =Database!L25 -> 1000 | F24: =Database!M25 -> 2500 | G24: =Database!O25 -> 500 | H24: =Database!P25 -> 1000 | I24: =Database!S25 -> 0 | J24: =Database!U25 -> 2000 | K24: =Database!V25 -> 0 | L24: 12000 | M24: =Database!X25 -> 720 | N24: =Database!Y25 -> 0 | O24: =Database!Z25 -> 0 | P24: =Database!AA25 -> 0 | Q24: 720 | R24: 11280
A25: 21 | B25: =Database!A26 -> Sharafali P | C25: =Database!I26 -> 14000 | D25: =Database!K26 -> 7000 | E25: =Database!L26 -> 1400 | F25: =Database!M26 -> 3500 | G25: =Database!O26 -> 700 | H25: =Database!P26 -> 1250 | I25: =Database!S26 -> 150 | J25: =Database!U26 -> 0 | K25: =Database!V26 -> 0 | L25: 14000 | M25: =Database!X26 -> 1010 | N25: =Database!Y26 -> 0 | O25: =Database!Z26 -> 0 | P25: =Database!AA26 -> 0 | Q25: 1010 | R25: 12990
P26: Total | R26: =SUM(R5:R25) -> 390780
B27: =CONCATENATE("Rupees ",SpellNumber(R26)) -> 
M28: ='Salary Slip'!B27 -> Authorised by Managing Director
M31: ='Salary Slip'!G27 -> Signature

Sheet Salary Slip
B1: =VLOOKUP(Q2,_xlnm.Database,36,FALSE) -> Company Name
B2: =PROPER(CONCATENATE("SALARY PAY SLIP FOR THE MONTH OF"&" ",VLOOKUP(Q2,_xlnm.Database,3,FALSE)&" ",VLOOKUP(Q2,_xlnm.Database,4,FALSE))) -> Salary Pay Slip For The Month Of December 2016 | P2: NAME | Q2: Raj Sharma
P3: DESIGNATION | Q3: =VLOOKUP(Q2,_xlnm.Database,2,FALSE) -> Chief Technical Officer
B4: Name: | C4: =VLOOKUP(Q2,_xlnm.Database,31,FALSE)&"."&VLOOKUP(Q2,_xlnm.Database,1,FALSE) -> Mr.Raj Sharma | G4: =PROPER(P3) -> Designation | I4: =Q3 -> Chief Technical Officer | P4: TOTAL LEAVE DAYS | Q4: =VLOOKUP(Q$2,_xlnm.Database,7,FALSE) -> 0
A5: I | B5: Basic Payment | G5: Rs. | H5: =Q9 -> 30000 | I5: A | J5: Total Attendance | M5: =MIN(30,Q5) -> 30 | P5: TOTAL DAYS OF THE MONTH | Q5: =VLOOKUP(Q$2,_xlnm.Database,5,FALSE) -> 30
A6: II | B6: Dearness Allowance | E6: Rs. | F6: =Q10 -> 6000 | I6: B | J6: Total Leave | M6: =Q4 -> 0 | P6: TOTAL ALLOWED LEAVE | Q6: =VLOOKUP(Q$2,_xlnm.Database,6,FALSE) -> 2
A7: III | B7: House Rent Allowance | E7: Rs. | F7: 15000 | J7: Allowed Leave | M7: =Q6 -> 2 | P7: CTC | Q7: =VLOOKUP(Q$2,_xlnm.Database,9,FALSE) -> 60000
A8: IV | B8: Conveyance | E8: Rs. | F8: 1600 | J8: Loss of Pay days | M8: =IF(M6<=M7,0,M6-M7) -> 0
A9: V | B9: Medical Expenses | E9: Rs. | F9: 0 | I9: C | J9: Total Salary Days | M9: =M5-M8 -> 30 | O9: ADDITIONS | P9: BASIC SALARY | Q9: =VLOOKUP(Q$2,_xlnm.Database,11,FALSE) -> 30000
A10: VI | B10: Special | E10: Rs. | F10: 6150 | P10: DEARNESS ALLOWANCE | Q10: =VLOOKUP(Q$2,_xlnm.Database,12,FALSE) -> 6000
A11: VII | B11: Bonus | E11: Rs. | F11: 13100 | P11: HOUSE RENT ALLOWANCE | Q11: =VLOOKUP(Q$2,_xlnm.Database,13,FALSE) -> 15000
A12: VIII | B12: =Database!V5 -> TA | E12: Rs. | F12: 0 | P12: CONVEYANCE | Q12: =VLOOKUP(Q$2,_xlnm.Database,15,FALSE) -> 1600
B13: Total Gross Salary | G13: Rs. | H13: =SUM(F6:F12) -> 41850 | P13: MEDICAL EXPENSES | Q13: =VLOOKUP(Q$2,_xlnm.Database,17,FALSE) -> 0
H14: =H5+H13 -> 71850 | P14: SPECIAL | Q14: =VLOOKUP(Q$2,_xlnm.Database,19,FALSE) -> 6150
B15: Deductions | P15: BONUS | Q15: =VLOOKUP(Q$2,_xlnm.Database,21,FALSE) -> 13100
B16: a.Contribution to PF | E16: Rs. | F16: =Q18 -> 1800 | P16: OTHERS | Q16: =VLOOKUP(Q$2,_xlnm.Database,22,FALSE) -> 0
B17: b.Salary Advance | E17: Rs. | F17: =Q21 -> 0 | P17: =CONCATENATE("TOTAL"," " & O9) -> TOTAL ADDITIONS | Q17: =SUM(Q9:Q16) -> 71850
B18: c.Profession Tax | E18: Rs. | F18: =Q19 -> 0 | O18: DEDUCTIONS | P18: CONTRIBUTION TO PF | Q18: =VLOOKUP(Q$2,_xlnm.Database,24,FALSE) -> 1800
B19: d.TDS | E19: Rs. | F19: =Q20 -> 7000 | P19: PROFESSION TAX | Q19: =VLOOKUP(Q$2,_xlnm.Database,25,FALSE) -> 0
B20: Total Deductions | F20: =SUM(F16:F19) -> 8800 | P20: TDS | Q20: =VLOOKUP(Q$2,_xlnm.Database,26,FALSE) -> 7000
B21: Total Deductions | G21: Rs. | H21: =ROUND(F20,-1) -> 8800 | P21: SALARY ADVANCE | Q21: =VLOOKUP(Q$2,_xlnm.Database,27,FALSE) -> 0
P22: =CONCATENATE("TOTAL"," " & O18) -> TOTAL DEDUCTIONS | Q22: =SUM(Q18:Q21) -> 8800
B23: SALARY AFTER DEDUCTIONS | H23: =H14-H21 -> 63050
B24: Less Salary Advance | G24: Rs | H24: =Q21 -> 0 | I24: =SpellNumber(H25) -> 
B25: NET TAKE HOME | H25: =H23-H24 -> 63050
B27: =CONCATENATE("Authorised by" &" ",Database!AF6) -> Authorised by Managing Director | G27: Signature | I27: ------------------------------------------------
